[Event "Live Chess"]
[Site "Chess.com"]
[Date "2023.05.20"]
[Round "-"]
[White "Fazer180"]
[Black "LodeshChess"]
[Result "1-0"]
[WhiteElo "1754"]
[BlackElo "1105"]
[TimeControl "300"]
[EndTime "15:34:15 PDT"]
[Termination "Fazer180 won on time"]

1. e4 {[%clk 0:04:56.9]} 1... c6 {[%clk 0:04:56.1]} 2. d4 {[%clk 0:04:54.1]}
2... d5 {[%clk 0:04:55.5]} 3. Nc3 {[%clk 0:04:52.6]} 3... dxe4 {[%clk
0:04:54.4]} 4. Nxe4 {[%clk 0:04:51.6]} 4... Bf5 {[%clk 0:04:54]} 5. Ng3 {[%clk
0:04:49.4]} 5... Bg6 {[%clk 0:04:52.7]} 6. h4 {[%clk 0:04:48.4]} 6... h6 {[%clk
0:04:51.5]} 7. h5 {[%clk 0:04:47.6]} 7... Bh7 {[%clk 0:04:50.9]} 8. Nf3 {[%clk
0:04:45.7]} 8... Nd7 {[%clk 0:04:49.4]} 9. Bd3 {[%clk 0:04:44.6]} 9... Bxd3
{[%clk 0:04:48.1]} 10. Qxd3 {[%clk 0:04:44.5]} 10... e6 {[%clk 0:04:47.4]} 11.
c4 {[%clk 0:04:39.2]} 11... Qa5+ {[%clk 0:04:43.3]} 12. Bd2 {[%clk 0:04:36]}
12... Bb4 {[%clk 0:04:43]} 13. O-O {[%clk 0:04:31.5]} 13... Bxd2 {[%clk
0:04:40.4]} 14. Nxd2 {[%clk 0:04:28.2]} 14... Ngf6 {[%clk 0:04:36.2]} 15. Nde4
{[%clk 0:04:20.6]} 15... O-O {[%clk 0:04:33.8]} 16. a3 {[%clk 0:04:10]} 16...
Rad8 {[%clk 0:04:22.1]} 17. b4 {[%clk 0:04:07]} 17... Qc7 {[%clk 0:04:12.7]} 18.
Qf3 {[%clk 0:03:51.2]} 18... Nxe4 {[%clk 0:03:50.4]} 19. Nxe4 {[%clk 0:03:43.9]}
19... Nf6 {[%clk 0:03:49.5]} 20. Nxf6+ {[%clk 0:03:40.5]} 20... gxf6 {[%clk
0:03:49]} 21. Qxf6 {[%clk 0:03:37.5]} 21... Kh7 {[%clk 0:03:40.9]} 22. Rfe1
{[%clk 0:03:13.6]} 22... Rg8 {[%clk 0:03:23.6]} 23. Re3 {[%clk 0:03:04.8]} 23...
Rg5 {[%clk 0:02:32.1]} 24. Rf3 {[%clk 0:02:55.2]} 24... Rf8 {[%clk 0:02:15.8]}
25. Rh3 {[%clk 0:02:39.5]} 25... Rfg8 {[%clk 0:01:44.8]} 26. g3 {[%clk
0:02:17.5]} 26... Rf5 {[%clk 0:01:35.8]} 27. Qh4 {[%clk 0:02:12]} 27... Rfg5
{[%clk 0:00:48.2]} 28. Qe4+ {[%clk 0:02:02.3]} 28... Rf5 {[%clk 0:00:40.9]} 29.
Rd1 {[%clk 0:01:38.1]} 29... Rg5 {[%clk 0:00:19.5]} 30. Qd3 {[%clk 0:01:16.1]}
30... Qd8 {[%clk 0:00:17.3]} 31. Rh4 {[%clk 0:01:10.6]} 31... Qg8 {[%clk
0:00:15.7]} 32. Kh2 {[%clk 0:00:58.8]} 32... Rg4 {[%clk 0:00:10.8]} 33. Rxg4
{[%clk 0:00:44.7]} 33... Qxg4 {[%clk 0:00:10.4]} 34. Kg2 {[%clk 0:00:44.3]}
34... Qxh5 {[%clk 0:00:08.3]} 35. Rg1 {[%clk 0:00:39.6]} 35... Qg6 {[%clk
0:00:03.6]} 36. Kf1 {[%clk 0:00:38.1]} 36... Rxf2+ {[%clk 0:00:01.8]} 37. Kxf2
{[%clk 0:00:37.4]} 37... Qxd3 {[%clk 0:00:01.1]} 38. Kg2 {[%clk 0:00:37.3]}
38... Qxd4 {[%clk 0:00:00.7]} 39. Kh3 {[%clk 0:00:37.2]} 39... Qxc4 {[%clk
0:00:00.3]} 40. Kh2 {[%clk 0:00:37.1]} 1-0

[Event "Live Chess"]
[Site "Chess.com"]
[Date "2023.05.20"]
[Round "-"]
[White "Delacorta"]
[Black "AttackingSnowLeopard"]
[Result "0-1"]
[WhiteElo "1425"]
[BlackElo "2124"]
[TimeControl "300"]
[EndTime "15:34:18 PDT"]
[Termination "AttackingSnowLeopard won by resignation"]

1. d4 {[%clk 0:04:58.3]} 1... d5 {[%clk 0:04:58.6]} 2. Nf3 {[%clk 0:04:57.3]}
2... Nf6 {[%clk 0:04:56.2]} 3. b3 {[%clk 0:04:55.1]} 3... Bf5 {[%clk 0:04:53.8]}
4. e3 {[%clk 0:04:52.7]} 4... e6 {[%clk 0:04:53.1]} 5. Bd3 {[%clk 0:04:50.5]}
5... Bxd3 {[%clk 0:04:52.1]} 6. Qxd3 {[%clk 0:04:49.8]} 6... Nbd7 {[%clk
0:04:50]} 7. Bb2 {[%clk 0:04:49]} 7... c6 {[%clk 0:04:49]} 8. Nbd2 {[%clk
0:04:48.1]} 8... Bd6 {[%clk 0:04:47.9]} 9. Ne5 {[%clk 0:04:44.7]} 9... O-O
{[%clk 0:04:45.4]} 10. O-O {[%clk 0:04:42.8]} 10... Qc7 {[%clk 0:04:43.9]} 11.
f4 {[%clk 0:04:41.7]} 11... c5 {[%clk 0:04:41.4]} 12. c4 {[%clk 0:04:36.2]}
12... cxd4 {[%clk 0:04:39.1]} 13. exd4 {[%clk 0:04:35.5]} 13... Bb4 {[%clk
0:04:37.7]} 14. Rac1 {[%clk 0:04:11.4]} 14... Bxd2 {[%clk 0:04:34.5]} 15. Qxd2
{[%clk 0:04:10.4]} 15... Nxe5 {[%clk 0:04:33.5]} 16. fxe5 {[%clk 0:04:04.1]}
16... Ne4 {[%clk 0:04:32.8]} 17. Qd3 {[%clk 0:03:50.2]} 17... Qd7 {[%clk
0:04:31.9]} 18. cxd5 {[%clk 0:03:44.6]} 18... exd5 {[%clk 0:04:29.4]} 19. Rc2
{[%clk 0:03:26.8]} 19... f5 {[%clk 0:04:28]} 20. Rfc1 {[%clk 0:03:10.5]} 20...
Rac8 {[%clk 0:04:20.7]} 21. Rxc8 {[%clk 0:03:02.5]} 21... Rxc8 {[%clk
0:04:20.6]} 22. Rxc8+ {[%clk 0:03:00.6]} 22... Qxc8 {[%clk 0:04:20.5]} 23. g3
{[%clk 0:02:37.9]} 23... Qc6 {[%clk 0:04:16.2]} 24. Kg2 {[%clk 0:02:35.7]} 24...
g5 {[%clk 0:04:09.9]} 25. Kh3 {[%clk 0:02:22.4]} 25... Qh6+ {[%clk 0:04:04.8]}
26. Kg2 {[%clk 0:02:21.5]} 26... f4 {[%clk 0:04:01.8]} 27. Qb5 {[%clk
0:01:59.8]} 27... Qe6 {[%clk 0:03:50.4]} 28. Qxb7 {[%clk 0:01:39.7]} 28... f3+
{[%clk 0:03:46.7]} 29. Kf1 {[%clk 0:01:27]} 29... Qh3+ {[%clk 0:03:44.8]} 30.
Ke1 {[%clk 0:01:25.7]} 30... f2+ {[%clk 0:03:43.2]} 0-1

[Event "Live Chess"]
[Site "Chess.com"]
[Date "2023.05.20"]
[Round "-"]
[White "Daniel_Gliddon_FA"]
[Black "LL220284LL"]
[Result "0-1"]
[WhiteElo "1268"]
[BlackElo "2399"]
[TimeControl "300"]
[EndTime "15:34:23 PDT"]
[Termination "LL220284LL won by resignation"]

1. e4 {[%clk 0:04:38.7]} 1... c5 {[%clk 0:04:57.6]} 2. d4 {[%clk 0:04:36.8]}
2... cxd4 {[%clk 0:04:52.8]} 3. Nf3 {[%clk 0:04:34.8]} 3... Nc6 {[%clk
0:04:51.2]} 4. Nxd4 {[%clk 0:04:28]} 4... g6 {[%clk 0:04:48.7]} 5. Nc3 {[%clk
0:04:24.4]} 5... Bg7 {[%clk 0:04:47.7]} 6. Be3 {[%clk 0:04:11.7]} 6... Nf6
{[%clk 0:04:46.9]} 7. Nxc6 {[%clk 0:04:01.7]} 7... bxc6 {[%clk 0:04:44.2]} 8. e5
{[%clk 0:03:59.8]} 8... Ng8 {[%clk 0:04:42.1]} 9. Bd4 {[%clk 0:03:51.7]} 9...
Qa5 {[%clk 0:04:39.6]} 10. e6 {[%clk 0:03:42.2]} 10... Nf6 {[%clk 0:04:37.2]}
11. exf7+ {[%clk 0:03:38.4]} 11... Kxf7 {[%clk 0:04:37.1]} 12. Bc4+ {[%clk
0:03:33]} 12... d5 {[%clk 0:04:34.8]} 13. Bb3 {[%clk 0:03:24.7]} 13... e5 {[%clk
0:04:32.7]} 14. Bxe5 {[%clk 0:03:20.3]} 14... Re8 {[%clk 0:04:30.5]} 15. f4
{[%clk 0:03:01.8]} 15... Qb6 {[%clk 0:04:28.1]} 16. Nxd5 {[%clk 0:02:50]} 16...
cxd5 {[%clk 0:04:20.3]} 17. Bxd5+ {[%clk 0:02:48.3]} 17... Nxd5 {[%clk
0:04:17.7]} 18. Qxd5+ {[%clk 0:02:46.6]} 18... Be6 {[%clk 0:04:16.9]} 19. Qd6
{[%clk 0:02:28.5]} 19... Qxd6 {[%clk 0:04:04.1]} 20. Bxd6 {[%clk 0:02:26.2]}
20... Bxb2 {[%clk 0:04:03.7]} 21. Rb1 {[%clk 0:02:07.7]} 21... Bxa2+ {[%clk
0:04:02.1]} 22. Be5 {[%clk 0:01:57.1]} 22... Bxb1 {[%clk 0:03:58.2]} 23. O-O
{[%clk 0:01:53.9]} 23... Bxe5 {[%clk 0:03:55.5]} 24. fxe5+ {[%clk 0:01:52.4]}
24... Kg8 {[%clk 0:03:55.1]} 25. Rxb1 {[%clk 0:01:48.2]} 25... Rxe5 {[%clk
0:03:54.7]} 26. Rb7 {[%clk 0:01:41.6]} 26... a5 {[%clk 0:03:52.9]} 27. Kf2
{[%clk 0:01:37.3]} 27... a4 {[%clk 0:03:51.7]} 28. Kf3 {[%clk 0:01:30.9]} 28...
a3 {[%clk 0:03:50.8]} 0-1

[Event "Live Chess"]
[Site "Chess.com"]
[Date "2023.05.20"]
[Round "-"]
[White "Jo1ts"]
[Black "lateforthesky"]
[Result "1/2-1/2"]
[WhiteElo "779"]
[BlackElo "2107"]
[TimeControl "300"]
[EndTime "15:34:27 PDT"]
[Termination "Game drawn by repetition"]

1. d4 {[%clk 0:04:58.4]} 1... Nf6 {[%clk 0:04:58.2]} 2. Bf4 {[%clk 0:04:56]}
2... g6 {[%clk 0:04:56.8]} 3. c3 {[%clk 0:04:54.6]} 3... Bg7 {[%clk 0:04:54.8]}
4. Nf3 {[%clk 0:04:53.9]} 4... d6 {[%clk 0:04:53.5]} 5. e3 {[%clk 0:04:53.2]}
5... O-O {[%clk 0:04:51.9]} 6. Nbd2 {[%clk 0:04:48.7]} 6... c5 {[%clk
0:04:51.3]} 7. Bc4 {[%clk 0:04:39.5]} 7... a6 {[%clk 0:04:39.3]} 8. a3 {[%clk
0:04:38.5]} 8... b5 {[%clk 0:04:37.2]} 9. Ba2 {[%clk 0:04:31.9]} 9... Bb7 {[%clk
0:04:35]} 10. b4 {[%clk 0:04:29.2]} 10... c4 {[%clk 0:04:30]} 11. O-O {[%clk
0:04:21.7]} 11... Nbd7 {[%clk 0:04:27.8]} 12. Bb1 {[%clk 0:04:10.3]} 12... Nh5
{[%clk 0:04:24]} 13. Bg5 {[%clk 0:04:00.8]} 13... h6 {[%clk 0:04:22.4]} 14. Bh4
{[%clk 0:03:58.1]} 14... g5 {[%clk 0:04:14.2]} 15. Bg3 {[%clk 0:03:56.1]} 15...
Nxg3 {[%clk 0:04:12.6]} 16. hxg3 {[%clk 0:03:54.7]} 16... f5 {[%clk 0:04:00.9]}
17. Re1 {[%clk 0:03:50.3]} 17... d5 {[%clk 0:03:57.4]} 18. Qc2 {[%clk
0:03:32.1]} 18... e6 {[%clk 0:03:51.7]} 19. a4 {[%clk 0:03:22.7]} 19... Nf6
{[%clk 0:03:41]} 20. axb5 {[%clk 0:03:18.1]} 20... axb5 {[%clk 0:03:39.5]} 21.
Rxa8 {[%clk 0:03:11.9]} 21... Qxa8 {[%clk 0:03:38.4]} 22. Qa2 {[%clk 0:03:08.2]}
22... Qxa2 {[%clk 0:03:32.7]} 23. Bxa2 {[%clk 0:03:08.1]} 23... Ra8 {[%clk
0:03:30.6]} 24. Bb1 {[%clk 0:03:03.5]} 24... Ra3 {[%clk 0:03:27.2]} 25. Rc1
{[%clk 0:02:59.8]} 25... Ne4 {[%clk 0:03:11.9]} 26. Nxe4 {[%clk 0:02:56.6]}
26... fxe4 {[%clk 0:03:09.3]} 27. Ne5 {[%clk 0:02:55.1]} 27... Bxe5 {[%clk
0:03:06.7]} 28. dxe5 {[%clk 0:02:55]} 28... Ra1 {[%clk 0:03:05]} 29. Kh2 {[%clk
0:02:51.2]} 29... Bc6 {[%clk 0:03:03.7]} 30. f3 {[%clk 0:02:46]} 30... exf3
{[%clk 0:02:57.1]} 31. gxf3 {[%clk 0:02:45.9]} 31... Kg7 {[%clk 0:02:55.5]} 32.
f4 {[%clk 0:02:45.2]} 32... Be8 {[%clk 0:02:52.9]} 33. Rg1 {[%clk 0:02:36.8]}
33... Bg6 {[%clk 0:02:35.2]} 34. Bxg6 {[%clk 0:02:35]} 34... Rxg1 {[%clk
0:02:34.3]} 35. Kxg1 {[%clk 0:02:32.7]} 35... Kxg6 {[%clk 0:02:34.2]} 36. Kg2
{[%clk 0:02:30.6]} 36... g4 {[%clk 0:02:22.3]} 37. Kh2 {[%clk 0:02:20.1]} 37...
Kf5 {[%clk 0:02:20.2]} 38. Kg2 {[%clk 0:02:16.6]} 38... Ke4 {[%clk 0:02:18.5]}
39. Kf2 {[%clk 0:02:11.4]} 39... Kf5 {[%clk 0:02:12.7]} 40. Ke2 {[%clk
0:02:09.9]} 40... h5 {[%clk 0:02:09.2]} 41. Kf2 {[%clk 0:02:03.3]} 41... Ke4
{[%clk 0:02:06.7]} 42. Ke2 {[%clk 0:02:01.9]} 42... Kf5 {[%clk 0:01:57.5]} 43.
Kf2 {[%clk 0:02:00.6]} 43... Ke4 {[%clk 0:01:52.9]} 44. Ke2 {[%clk 0:01:59.6]}
44... Kf5 {[%clk 0:01:52]} 1/2-1/2

[Event "Live Chess"]
[Site "Chess.com"]
[Date "2023.05.20"]
[Round "-"]
[White "Hussamalhaidar"]
[Black "karimghalambaz"]
[Result "0-1"]
[WhiteElo "1030"]
[BlackElo "1270"]
[TimeControl "300"]
[EndTime "15:34:30 PDT"]
[Termination "karimghalambaz won by checkmate"]

1. b3 {[%clk 0:04:56.7]} 1... c5 {[%clk 0:04:53.6]} 2. Bb2 {[%clk 0:04:54.7]}
2... d6 {[%clk 0:04:51.2]} 3. d4 {[%clk 0:04:53.6]} 3... cxd4 {[%clk 0:04:48.8]}
4. Qxd4 {[%clk 0:04:49.7]} 4... e5 {[%clk 0:04:45.5]} 5. Qa4+ {[%clk 0:04:45.8]}
5... Bd7 {[%clk 0:04:40.3]} 6. Qc4 {[%clk 0:04:23.9]} 6... Nc6 {[%clk
0:04:37.6]} 7. Nf3 {[%clk 0:04:19.6]} 7... Nf6 {[%clk 0:04:34.8]} 8. e4 {[%clk
0:04:15.9]} 8... Be7 {[%clk 0:04:31.2]} 9. Nbd2 {[%clk 0:04:06.3]} 9... Rc8
{[%clk 0:04:28.3]} 10. Ng5 {[%clk 0:03:48.9]} 10... O-O {[%clk 0:04:22]} 11. Qe2
{[%clk 0:03:43.6]} 11... Nd4 {[%clk 0:04:17.3]} 12. Bxd4 {[%clk 0:03:40.7]}
12... exd4 {[%clk 0:04:13.8]} 13. O-O-O {[%clk 0:03:23.2]} 13... Qb6 {[%clk
0:03:54.1]} 14. Nc4 {[%clk 0:03:09.6]} 14... Qc7 {[%clk 0:03:44.8]} 15. Rxd4
{[%clk 0:03:02.6]} 15... b5 {[%clk 0:03:31.8]} 16. Nb2 {[%clk 0:02:38.8]} 16...
a5 {[%clk 0:03:15.8]} 17. f4 {[%clk 0:02:33.1]} 17... a4 {[%clk 0:03:05.5]} 18.
bxa4 {[%clk 0:02:24]} 18... bxa4 {[%clk 0:02:59.6]} 19. Nxa4 {[%clk 0:02:19.1]}
19... Ra8 {[%clk 0:02:49.4]} 20. e5 {[%clk 0:01:56.2]} 20... dxe5 {[%clk
0:02:29.4]} 21. fxe5 {[%clk 0:01:50.1]} 21... Ng4 {[%clk 0:02:22.9]} 22. Rxd7
{[%clk 0:01:36.6]} 22... Qxd7 {[%clk 0:02:19.8]} 23. e6 {[%clk 0:01:03]} 23...
Bxg5+ {[%clk 0:02:11.5]} 24. Kb1 {[%clk 0:00:46.7]} 24... Qxa4 {[%clk
0:02:08.4]} 25. exf7+ {[%clk 0:00:40.6]} 25... Rxf7 {[%clk 0:02:03.4]} 26. c3
{[%clk 0:00:37.4]} 26... Rb8+ {[%clk 0:01:48.2]} 27. Ka1 {[%clk 0:00:32.5]}
27... Qa3 {[%clk 0:01:43.7]} 28. Qc4 {[%clk 0:00:19.1]} 28... Qb2# {[%clk
0:01:36]} 0-1

[Event "Live Chess"]
[Site "Chess.com"]
[Date "2023.05.20"]
[Round "-"]
[White "Nazar_777"]
[Black "birdseed45"]
[Result "1-0"]
[WhiteElo "1638"]
[BlackElo "1864"]
[TimeControl "300"]
[EndTime "15:34:59 PDT"]
[Termination "Nazar_777 won by resignation"]

1. e3 {[%clk 0:04:57.5]} 1... c5 {[%clk 0:04:59]} 2. h4 {[%clk 0:04:50]} 2... d5
{[%clk 0:04:52.5]} 3. a3 {[%clk 0:04:48.9]} 3... Nf6 {[%clk 0:04:49.9]} 4. c4
{[%clk 0:04:47.9]} 4... e6 {[%clk 0:04:45.4]} 5. cxd5 {[%clk 0:04:46.9]} 5...
exd5 {[%clk 0:04:45.3]} 6. Nf3 {[%clk 0:04:46.1]} 6... Bd6 {[%clk 0:04:44]} 7.
Be2 {[%clk 0:04:45.2]} 7... Nc6 {[%clk 0:04:40.3]} 8. Qc2 {[%clk 0:04:44.2]}
8... Qe7 {[%clk 0:04:34.8]} 9. Nc3 {[%clk 0:04:43]} 9... Ne5 {[%clk 0:04:32.4]}
10. b3 {[%clk 0:04:40.8]} 10... Nxf3+ {[%clk 0:04:28.7]} 11. gxf3 {[%clk
0:04:39.3]} 11... Be6 {[%clk 0:04:19.8]} 12. Bb2 {[%clk 0:04:38.2]} 12... d4
{[%clk 0:04:09.3]} 13. Ne4 {[%clk 0:04:36.1]} 13... Nxe4 {[%clk 0:04:06.4]} 14.
fxe4 {[%clk 0:04:35]} 14... Rc8 {[%clk 0:03:59]} 15. f4 {[%clk 0:04:32]} 15...
dxe3 {[%clk 0:03:54.1]} 16. dxe3 {[%clk 0:04:30.6]} 16... a6 {[%clk 0:03:47.4]}
17. e5 {[%clk 0:04:29.4]} 17... Bb8 {[%clk 0:03:44.3]} 18. Bc4 {[%clk
0:04:28.3]} 18... b5 {[%clk 0:03:38.9]} 19. Bxe6 {[%clk 0:04:26.8]} 19... Qxe6
{[%clk 0:03:38.8]} 20. Qe4 {[%clk 0:04:24.6]} 20... O-O {[%clk 0:03:28.3]} 21.
Rg1 {[%clk 0:04:21.6]} 21... Qxb3 {[%clk 0:03:24.1]} 22. Rb1 {[%clk 0:04:16.2]}
22... Qc4 {[%clk 0:03:10.4]} 23. Qg2 {[%clk 0:04:07.2]} 23... g6 {[%clk
0:03:05.7]} 24. h5 {[%clk 0:04:05.6]} 24... Qe6 {[%clk 0:02:59.4]} 25. Qg5
{[%clk 0:03:59]} 25... Rcd8 {[%clk 0:02:46.1]} 26. Qh6 {[%clk 0:03:56.2]} 26...
Qd5 {[%clk 0:02:31.5]} 27. e6 {[%clk 0:03:25.8]} 27... Qd2+ {[%clk 0:02:28.7]}
28. Kf1 {[%clk 0:03:24.1]} 28... Qd3+ {[%clk 0:02:18]} 29. Kf2 {[%clk
0:03:22.6]} 29... Qd2+ {[%clk 0:01:57.7]} 30. Kf3 {[%clk 0:03:21.1]} 30... Qd5+
{[%clk 0:01:49.7]} 31. Kg3 {[%clk 0:03:15.8]} 31... f6 {[%clk 0:01:24]} 32. e7
{[%clk 0:03:08.8]} 32... Rde8 {[%clk 0:01:15.3]} 33. exf8=Q+ {[%clk 0:03:06]}
33... Rxf8 {[%clk 0:01:15.2]} 34. hxg6 {[%clk 0:03:04.8]} 34... hxg6 {[%clk
0:01:02.5]} 35. Qxg6+ {[%clk 0:03:01.5]} 35... Kh8 {[%clk 0:01:01.5]} 36. Rh1+
{[%clk 0:02:59.5]} 1-0

[Event "Live Chess"]
[Site "Chess.com"]
[Date "2023.05.20"]
[Round "-"]
[White "GMHarry-youtube"]
[Black "hturner40"]
[Result "1-0"]
[WhiteElo "2008"]
[BlackElo "1798"]
[TimeControl "300"]
[EndTime "15:35:03 PDT"]
[Termination "GMHarry-youtube won on time"]

1. e4 {[%clk 0:04:58.9]} 1... Nc6 {[%clk 0:04:57.7]} 2. Nf3 {[%clk 0:04:58]}
2... e5 {[%clk 0:04:55.9]} 3. Bc4 {[%clk 0:04:57.1]} 3... Nf6 {[%clk 0:04:53.7]}
4. d3 {[%clk 0:04:55.8]} 4... Be7 {[%clk 0:04:50.6]} 5. c3 {[%clk 0:04:55]} 5...
d6 {[%clk 0:04:48.8]} 6. O-O {[%clk 0:04:54]} 6... a6 {[%clk 0:04:40.4]} 7. h3
{[%clk 0:04:52.6]} 7... Na5 {[%clk 0:04:37.9]} 8. Bb3 {[%clk 0:04:49.6]} 8...
Nxb3 {[%clk 0:04:36.4]} 9. axb3 {[%clk 0:04:49.5]} 9... O-O {[%clk 0:04:32.2]}
10. c4 {[%clk 0:04:48.1]} 10... c6 {[%clk 0:04:19.4]} 11. Nc3 {[%clk 0:04:45.7]}
11... Qc7 {[%clk 0:04:17.6]} 12. Be3 {[%clk 0:04:44.4]} 12... Bd7 {[%clk
0:04:10.5]} 13. d4 {[%clk 0:04:43.6]} 13... b5 {[%clk 0:03:49.6]} 14. c5 {[%clk
0:04:32.4]} 14... b4 {[%clk 0:03:37.8]} 15. dxe5 {[%clk 0:04:28.3]} 15... dxe5
{[%clk 0:03:33]} 16. Na4 {[%clk 0:04:26.9]} 16... Nxe4 {[%clk 0:03:28.9]} 17.
Nb6 {[%clk 0:04:25.5]} 17... Rad8 {[%clk 0:03:24.2]} 18. Qc2 {[%clk 0:04:20.2]}
18... Bf5 {[%clk 0:03:11.1]} 19. Qc4 {[%clk 0:04:14.2]} 19... a5 {[%clk
0:01:56]} 20. Rxa5 {[%clk 0:04:10.7]} 20... Rd5 {[%clk 0:01:49.9]} 21. Nxd5
{[%clk 0:04:07.2]} 21... cxd5 {[%clk 0:01:48.5]} 22. Qa6 {[%clk 0:04:04.3]}
22... Nxc5 {[%clk 0:01:41.7]} 23. Bxc5 {[%clk 0:04:01.5]} 23... Bxc5 {[%clk
0:01:38.8]} 24. Nxe5 {[%clk 0:03:59.8]} 24... Bd6 {[%clk 0:01:02.2]} 25. Nf3
{[%clk 0:03:53]} 25... Be4 {[%clk 0:01:00.9]} 26. Qa7 {[%clk 0:03:47.9]} 26...
Qd8 {[%clk 0:00:48.6]} 27. Qd4 {[%clk 0:03:31.4]} 27... Qxa5 {[%clk 0:00:38]}
28. Nd2 {[%clk 0:03:30]} 28... Qc5 {[%clk 0:00:34.5]} 29. Qxc5 {[%clk
0:03:21.5]} 29... Bxc5 {[%clk 0:00:32.9]} 30. Nxe4 {[%clk 0:03:21.4]} 30... dxe4
{[%clk 0:00:31.6]} 31. Rc1 {[%clk 0:03:21.3]} 31... Bd4 {[%clk 0:00:28.9]} 32.
Re1 {[%clk 0:03:18.9]} 32... f5 {[%clk 0:00:26.8]} 33. Re2 {[%clk 0:03:17.3]}
33... Rc8 {[%clk 0:00:25.4]} 34. Rd2 {[%clk 0:03:12.3]} 34... Bb6 {[%clk
0:00:20.3]} 35. g3 {[%clk 0:03:10]} 35... e3 {[%clk 0:00:18.9]} 36. Rd1 {[%clk
0:03:04.8]} 36... exf2+ {[%clk 0:00:17.2]} 37. Kg2 {[%clk 0:03:04]} 37... Rc2
{[%clk 0:00:15.3]} 38. Kf1 {[%clk 0:03:03.1]} 38... Rxb2 {[%clk 0:00:13.6]} 39.
Rc1 {[%clk 0:03:00.7]} 39... Be3 {[%clk 0:00:11.3]} 40. Rc8+ {[%clk 0:02:59.1]}
40... Kf7 {[%clk 0:00:10.4]} 41. Rc7+ {[%clk 0:02:58.1]} 41... Kg6 {[%clk
0:00:09.2]} 42. Rc6+ {[%clk 0:02:51.9]} 42... Kg5 {[%clk 0:00:06.6]} 43. h4+
{[%clk 0:02:49.1]} 43... Kg4 {[%clk 0:00:05]} 44. Kg2 {[%clk 0:02:48]} 44... Rb1
{[%clk 0:00:01]} 45. Rc4+ {[%clk 0:02:47.5]} 1-0

[Event "Live Chess"]
[Site "Chess.com"]
[Date "2023.05.20"]
[Round "-"]
[White "domrobson"]
[Black "IgorSchukin"]
[Result "1-0"]
[WhiteElo "1790"]
[BlackElo "1729"]
[TimeControl "300"]
[EndTime "15:35:09 PDT"]
[Termination "domrobson won by checkmate"]

1. d4 {[%clk 0:04:58.7]} 1... d5 {[%clk 0:04:58.9]} 2. c4 {[%clk 0:04:57.9]}
2... e5 {[%clk 0:04:56.8]} 3. dxe5 {[%clk 0:04:56.8]} 3... d4 {[%clk 0:04:55.7]}
4. Nf3 {[%clk 0:04:56.3]} 4... Nc6 {[%clk 0:04:55.2]} 5. a3 {[%clk 0:04:55.6]}
5... Nge7 {[%clk 0:04:53.1]} 6. Nbd2 {[%clk 0:04:55]} 6... Ng6 {[%clk
0:04:51.3]} 7. Nb3 {[%clk 0:04:54.4]} 7... Ngxe5 {[%clk 0:04:49.1]} 8. Nfxd4
{[%clk 0:04:52.2]} 8... Nxd4 {[%clk 0:04:45.2]} 9. Nxd4 {[%clk 0:04:50.6]} 9...
Nxc4 {[%clk 0:04:40.9]} 10. Qa4+ {[%clk 0:04:49]} 10... c6 {[%clk 0:04:18.7]}
11. Qxc4 {[%clk 0:04:47.7]} 11... Bd6 {[%clk 0:04:14.3]} 12. e3 {[%clk
0:04:38.5]} 12... O-O {[%clk 0:04:09.5]} 13. Bd3 {[%clk 0:04:37.5]} 13... Kh8
{[%clk 0:03:59.5]} 14. O-O {[%clk 0:04:32]} 14... a5 {[%clk 0:03:54.7]} 15. b3
{[%clk 0:04:27]} 15... Bd7 {[%clk 0:03:50.5]} 16. Bb2 {[%clk 0:04:25.5]} 16...
b5 {[%clk 0:03:49]} 17. Qc2 {[%clk 0:04:23.1]} 17... h5 {[%clk 0:03:39]} 18. Nf5
{[%clk 0:04:14.5]} 18... Bxf5 {[%clk 0:03:30]} 19. Bxf5 {[%clk 0:04:13.3]} 19...
c5 {[%clk 0:03:25.7]} 20. Rfd1 {[%clk 0:04:05.7]} 20... Qe7 {[%clk 0:03:22]} 21.
Qe4 {[%clk 0:03:56.6]} 21... Qc7 {[%clk 0:03:12]} 22. Qf3 {[%clk 0:03:48.1]}
22... Be5 {[%clk 0:02:48.7]} 23. Qxh5+ {[%clk 0:03:40.6]} 23... Kg8 {[%clk
0:02:46.7]} 24. Qh7# {[%clk 0:03:39.8]} 1-0

[Event "Live Chess"]
[Site "Chess.com"]
[Date "2023.05.20"]
[Round "-"]
[White "grillage"]
[Black "JohanKjeldahl"]
[Result "1-0"]
[WhiteElo "1864"]
[BlackElo "1858"]
[TimeControl "300"]
[EndTime "15:35:17 PDT"]
[Termination "grillage won by checkmate"]

1. d4 {[%clk 0:04:59.1]} 1... Nf6 {[%clk 0:04:57.8]} 2. Nc3 {[%clk 0:04:55.7]}
2... d5 {[%clk 0:04:55.2]} 3. Bf4 {[%clk 0:04:54.5]} 3... c6 {[%clk 0:04:53.4]}
4. e3 {[%clk 0:04:50.2]} 4... g6 {[%clk 0:04:52]} 5. Nf3 {[%clk 0:04:47.8]} 5...
Bg7 {[%clk 0:04:51.1]} 6. h4 {[%clk 0:04:43.4]} 6... Nbd7 {[%clk 0:04:47.9]} 7.
Qd2 {[%clk 0:04:31.4]} 7... h5 {[%clk 0:04:46.3]} 8. Ne5 {[%clk 0:04:28.5]} 8...
O-O {[%clk 0:04:41.4]} 9. O-O-O {[%clk 0:04:27.3]} 9... a5 {[%clk 0:04:38.2]}
10. Be2 {[%clk 0:04:24]} 10... Nxe5 {[%clk 0:04:36.9]} 11. Bxe5 {[%clk
0:04:22.5]} 11... b5 {[%clk 0:04:33.3]} 12. f3 {[%clk 0:04:10.9]} 12... a4
{[%clk 0:04:29.8]} 13. g4 {[%clk 0:03:58.7]} 13... b4 {[%clk 0:04:28.2]} 14. Nb1
{[%clk 0:03:57.1]} 14... b3 {[%clk 0:04:20.4]} 15. a3 {[%clk 0:03:51]} 15...
bxc2 {[%clk 0:04:18.1]} 16. Qxc2 {[%clk 0:03:46.8]} 16... hxg4 {[%clk
0:04:13.2]} 17. fxg4 {[%clk 0:03:45.6]} 17... Ne4 {[%clk 0:04:08.9]} 18. Bd3
{[%clk 0:03:37.8]} 18... Bxe5 {[%clk 0:04:06.6]} 19. dxe5 {[%clk 0:03:36.6]}
19... Qb6 {[%clk 0:03:59.8]} 20. Bxe4 {[%clk 0:03:29.8]} 20... Qxe3+ {[%clk
0:03:57.3]} 21. Nd2 {[%clk 0:03:17.9]} 21... dxe4 {[%clk 0:03:55.2]} 22. Kb1
{[%clk 0:03:10.9]} 22... Bxg4 {[%clk 0:03:51.4]} 23. Rdg1 {[%clk 0:03:01.7]}
23... Bf5 {[%clk 0:03:48.4]} 24. Ka1 {[%clk 0:02:26]} 24... Rab8 {[%clk
0:03:22.2]} 25. h5 {[%clk 0:02:21.6]} 25... Rfd8 {[%clk 0:03:08.3]} 26. Nc4
{[%clk 0:02:00.6]} 26... Qd4 {[%clk 0:02:56.5]} 27. hxg6 {[%clk 0:01:54.7]}
27... fxg6 {[%clk 0:02:55.4]} 28. Qh2 {[%clk 0:01:47.9]} 28... Qxc4 {[%clk
0:02:25.3]} 29. Qh7+ {[%clk 0:01:45]} 29... Kf8 {[%clk 0:02:24]} 30. Qh8+ {[%clk
0:01:31.8]} 30... Qg8 {[%clk 0:02:22.2]} 31. Qh6+ {[%clk 0:01:28.9]} 31... Qg7
{[%clk 0:02:16.5]} 32. Qf4 {[%clk 0:01:19]} 32... Kf7 {[%clk 0:01:48.8]} 33. Rg3
{[%clk 0:01:10.8]} 33... Rh8 {[%clk 0:01:44.2]} 34. Rhg1 {[%clk 0:01:09.9]}
34... Qh6 {[%clk 0:01:29.6]} 35. Qf1 {[%clk 0:00:59.7]} 35... Qd2 {[%clk
0:01:27.3]} 36. Qc4+ {[%clk 0:00:57.3]} 36... Be6 {[%clk 0:01:21.6]} 37. Rf1+
{[%clk 0:00:32.8]} 37... Kg7 {[%clk 0:01:14.2]} 38. Rxg6+ {[%clk 0:00:23.8]}
38... Kxg6 {[%clk 0:01:13.1]} 39. Qxe6+ {[%clk 0:00:22.8]} 39... Kg5 {[%clk
0:01:08]} 40. Qf5+ {[%clk 0:00:19]} 40... Kh6 {[%clk 0:01:03.2]} 41. Rh1+ {[%clk
0:00:15.5]} 41... Kg7 {[%clk 0:01:02]} 42. Rg1+ {[%clk 0:00:14.6]} 42... Kh6
{[%clk 0:00:55.9]} 43. Qh3# {[%clk 0:00:13.1]} 1-0